Cogmind - Beta 13 X2 @@@ ROGUE MODE // 2023.12.23 @ 13:01:32 Player: f3-rnm Result: Destroyed by SL-6CU(R) with Subdweller Machine Gun Performance ------------- Evolutions (0) 0 Regions Visited (2) 400 Robots Destroyed (22) 110 Value Destroyed (605) 605 Prototype IDs (2) 40 Alien Tech Used (0) 0 Bonus (0) 0 TOTAL SCORE: 1155 Bonus ------- None Cogmind --------- Core Integrity 0/250 Matter 125/300 Energy 39/100 System Corruption 0% Temperature Cool (0) Movement Core (100) Ox1 Location -10/Subcaves Parts ------- > --- POWER (1) -------- (None) > --- PROPULSION (2) --- (None) > --- UTILITY (2) ------ (None) > --- WEAPON (2) ------- Beam Cannon Beam Cannon > --- INVENTORY (5) ---- Ion Engine Wheel Light Armor Plating Peak State ------------ > --- POWER ------------ Ion Engine > --- PROPULSION ------- Light Treads Light Treads > --- UTILITY ---------- Medium Storage Unit Light Armor Plating > --- WEAPON ----------- Small Laser Assault Rifle > --- INVENTORY -------- Ion Engine Light Ion Engine Wheel Heat Sink Light Armor Plating Light Armor Plating Light Armor Plating Light Armor Plating Light Armor Plating Medium Laser [Rating: 8] Favorites ----------- Power Ion Engine Engine Ion Engine Propulsion Light Treads Treads Light Treads Utility Light Armor Plating Storage High-capacity Storage Unit Protection Light Armor Plating Weapon Small Laser Energy Gun Small Laser Energy Cannon Beam Cannon Ballistic Gun Assault Rifle Ballistic Cannon Light Cannon Build | -11 -10 -10 ------- Run | Yrd Mat Sub Slots Evolved . | . . . Power . | . . . Propulsion . | . . . Utility . | . . . Weapon . | . . . Parts Attached 19 | 7 8 4 Power 4 | 2 1 1 Engine 4 | 2 1 1 Core . | . . . Reactor . | . . . Propulsion 4 | 2 1 1 Treads 4 | 2 1 1 Leg . | . . . Wheel . | . . . Hover . | . . . Flight . | . . . Utility 6 | 1 4 1 Device . | . . . Storage 4 | 1 3 . Processor . | . . . Hackware . | . . . Protection 2 | . 1 1 Artifact . | . . . Weapon 5 | 2 2 1 Energy Gun 1 | 1 . . Energy Cannon 2 | . 1 1 Ballistic Gun 1 | 1 . . Ballistic Cannon 1 | . 1 . Launcher . | . . . Special Weapon . | . . . Impact Weapon . | . . . Slashing Weapon . | . . . Piercing Weapon . | . . . Special Melee Weapon . | . . . Unidentified Prototypes . | . . . Parts Lost 8 | . . 8 Power 2 | . . 2 Propulsion 3 | . . 3 Utility 2 | . . 2 Weapon 1 | . . 1 Highest Loss Streak 7 | . . 7 To Critical Strikes . | . . . Average Slot Usage (%) 96 | . 96 96 Engine 13 | . 14 13 Treads 27 | . 27 26 Storage 13 | . 14 10 Protection 11 | . 10 15 Energy Gun 10 | . 13 . Energy Cannon 3 | . . 14 Ballistic Gun 10 | . 13 . Ballistic Cannon 3 | . . 13 Naked Turns . | . . . Heaviest Build 54 | 13 54 54 Greatest Support 40 | 40 40 40 Greatest Overweight (x) 1 | . 1 1 Average Overweight (x) . | . . . Largest Inventory Capacity 20 | 8 20 20 Average Capacity 13 | 6 13 16 Most Carried 17 | 5 17 17 Average Carried 10 | 2 9 13 Final Capacity 20 | 8 20 5 Final Carried 17 | 3 17 3 Class Distribution -------------------- 100% | Mutant Dominant Class ---------------- Mutant | -10/Materials Mutant | -10/Subcaves Resources | -11 -10 -10 ----------- Run | Yrd Mat Sub Matter Collected 555 | 161 355 39 Remotely . | . . . Salvage Created 767 | . 672 95 Parts 34 | . 33 1 Haulers Intercepted 1 | . 1 . Recyclers Shooed 2 | . 2 . Parts Field Recycled . | . . . Retrieved Matter . | . . . Parts Self-Destructed 4 | . . 4 Prevented . | . . . Kills | -11 -10 -10 ------- Run | Yrd Mat Sub Combat Hostiles Destroyed 18 | . 15 3 Guns 15 | . 15 . Cannons 3 | . . 3 Classes Destroyed 6 | . 5 1 Worker 2 | . 2 . Hauler 1 | . 1 . Watcher 1 | . 1 . Swarmer 3 | . 3 . Grunt 14 | . 12 2 Subdweller 1 | . . 1 Best Kill Streak 4 | . 4 2 Combat Bots Only 3 | . 3 2 Max Kills in Single Turn 2 | . 2 1 Gunslinging . | . . . Exploded . | . . . Melee . | . . . Uniques/NPCs Destroyed . | . . . Combat | -11 -10 -10 -------- Run | Yrd Mat Sub Hostile Shots Fired 113 | . 49 64 Missed 31 | . 12 19 Damage Taken 1415 | . 459 956 Core 255 | . 111 144 Absorbed by Shields . | . . . Core Remaining (%) 100 | 100 . . Volleys Fired 116 | . 76 40 Largest 2 | . 2 2 Hottest 120 | . 60 120 Shots Fired 218 | . 139 79 Gun 127 | . 127 . Cannon 91 | . 12 79 Launcher . | . . . Special . | . . . Kinetic 111 | . 76 35 Thermal 107 | . 63 44 Explosive . | . . . Electromagnetic . | . . . Robot Hit Streak 25 | . 13 25 Robot Miss Streak 3 | . 3 2 Penetration Max . | . . . Secondary Targets . | . . . Shots Hit Robots 148 | . 80 68 Core Hits 42 | . 36 6 Critical Kills . | . . . Critical Parts Destroyed 2 | . 2 . Critical Strikes 4 | . 2 2 Destroy 2 | . 2 . Blast 2 | . . 2 Melee Attacks . | . . . Impact . | . . . Slashing . | . . . Piercing . | . . . Sneak Attacks . | . . . Combat Hostiles . | . . . Follow-up Attacks . | . . . Damage Inflicted 1535 | . 1040 495 Guns 1040 | . 1040 . Cannons 495 | . . 495 Explosions . | . . . Melee . | . . . Ramming . | . . . Kinetic 744 | . 567 177 Thermal 791 | . 473 318 Explosive . | . . . Electromagnetic . | . . . Impact . | . . . Slashing . | . . . Piercing . | . . . Highest Corruption . | . . . Average Corruption . | . . . Corruption Purged . | . . . Corruption Blocked . | . . . Overload Shots . | . . . Overflow Damage . | . . . Projectiles . | . . . Explosions . | . . . Melee . | . . . Knockbacks 3 | . . 3 Impact . | . . . Kinetic 3 | . . 3 Secondary . | . . . Self-Inflicted Damage . | . . . Shots . | . . . Rammed . | . . . Targets Rammed . | . . . Kicked . | . . . Crushed . | . . . Highest Temperature 69 | . 69 3 Average Temperature 22 | . 22 3 Received Heat Transfer 285 | . 213 72 Siege Activations . | . . . Robots Corrupted . | . . . Combat Hostiles . | . . . Parts Fried . | . . . Impact Corruptions . | . . . Robots Melted . | . . . Combat Hostiles . | . . . Parts Melted . | . . . Heat Transferred 1691 | . 1025 666 Parts Sabotaged . | . . . Parts Stolen . | . . . Parts Stripped . | . . . Power Chain Reactions . | . . . Missiles Intercepted . | . . . Alert | -11 -10 -10 ------- Run | Yrd Mat Sub Peak Influence 229 | . 229 . Initial . | . . . Average 92 | . 97 . Maximum Alert Level 1 | . 1 . Low Security (%) 93 | 100 92 . Level 1 6 | . 7 . Level 2 . | . . . Level 3 . | . . . Level 4 . | . . . Level 5 . | . . . High Security . | . . . Max Security . | . . . Squads Dispatched 3 | . 3 . Investigation 2 | . 2 . Extermination . | . . . Reinforcement 1 | . 1 . Assault . | . . . Garrison . | . . . Intercept . | . . . Searches Triggered . | . . . Construction Impeded . | . . . Haulers Reinforced . | . . . Active Scanning Responses . | . . . Cargo Convoy Interrupts . | . . . Stealth | -11 -10 -10 --------- Run | Yrd Mat Sub Distress Signals 2 | . 2 . Communications Jammed . | . . . Distress Signals . | . . . Times Spotted 34 | . 29 5 Peak Tracking Total 6 | . 6 2 Tactical Retreats 3 | . 3 . Traps | -11 -10 -10 ------- Run | Yrd Mat Sub Traps Triggered 5 | . 5 . Indirectly . | . . . Trap Hack Attempts . | . . . Triggered . | . . . Disarmed . | . . . Reprogrammed . | . . . Reused . | . . . Traps Extracted . | . . . Installed . | . . . Triggered . | . . . Machines | -11 -10 -10 ---------- Run | Yrd Mat Sub Machines Disabled . | . . . Max in Single Turn . | . . . Machines Repaired . | . . . Machines Dismantled . | . . . Machines Sabotaged . | . . . Overloaded Fab Kills . | . . . Hacking | -11 -10 -10 --------- Run | Yrd Mat Sub Machines Accessed 3 | . 3 . Terminals 2 | . 2 . Fabricators . | . . . Repair Stations 1 | . 1 . Recycling Units . | . . . Scanalyzers . | . . . Garrison Access . | . . . Total Hacks 8 | . 8 . Successful 4 | . 4 . Failed 4 | . 4 . Catastrophic 1 | . 1 . Database Lockouts . | . . . Manual 2 | . 2 . Terminals 5 | . 5 . Fabricators . | . . . Repair Stations 3 | . 3 . Recycling Units . | . . . Scanalyzers . | . . . Garrison Access . | . . . Terminal Hacks 3 | . 3 . Robot Analysis 1 | . 1 . Prototype ID Bank 1 | . 1 . Hauler Manifests 1 | . 1 . Fabricator Hacks . | . . . Repair Station Hacks 1 | . 1 . Scan Component 1 | . 1 . Recycling Unit Hacks . | . . . Scanalyzer . | . . . Garrison Access Hacks . | . . . Unauthorized Hacks . | . . . Terminals . | . . . Fabricators . | . . . Repair Stations . | . . . Recycling Units . | . . . Scanalyzers . | . . . Garrison Access . | . . . Data Cores Recovered . | . . . Used . | . . . Hacking Detections 2 | . 2 . Full Trace Events 1 | . 1 . Feedback Events . | . . . Feedback Blocked . | . . . Robot Schematics Acquired . | . . . Robots Built . | . . . Authchips . | . . . Time . | . . . Total Robot Build Rating . | . . . Part Schematics Acquired . | . . . Parts Built . | . . . Authchips . | . . . Time . | . . . Total Part Build Rating . | . . . Parts Repaired . | . . . Time . | . . . Parts Recycled . | . . . Recycled Matter . | . . . Retrieved Matter . | . . . Retrieved Components . | . . . Parts Scanalyzed . | . . . Part Schematics Acquired . | . . . Parts Damaged . | . . . Bothacking | -11 -10 -10 ------------ Run | Yrd Mat Sub Used RIF Installer . | . . . Robots Hacked . | . . . Non-combat . | . . . Combat . | . . . Robot Hacks Applied . | . . . Relay Couplers Released . | . . . Fabnet Peak Effective % . | . . . Robots Rewired . | . . . Allies Hacked . | . . . Hacks Repelled . | . . . Allies | -11 -10 -10 -------- Run | Yrd Mat Sub Total Allies . | . . . Largest Group . | . . . Highest-Rated Group . | . . . Highest-Rated Ally . | . . . Total Orders . | . . . Ally Attacks . | . . . Total Damage . | . . . Kills . | . . . Allies Corrupted . | . . . Allies Melted . | . . . Intel | -11 -10 -10 ------- Run | Yrd Mat Sub Robot Analysis Total 1 | . 1 . Derelict Logs Recovered . | . . . Drone Launches . | . . . Drone Recoveries . | . . . Exploration | -11 -10 -10 ------------- Run | Yrd Mat Sub Turns Passed 1835 | 76 1398 361 Spaces Moved 763 | 49 613 101 Core 16 | 16 . . Treads 747 | 33 613 101 Legs . | . . . Wheels . | . . . Hover . | . . . Flight . | . . . Fastest Speed 50 | 50 160 160 Average Speed 181 | 124 177 232 Slowest Speed 240 | 160 240 240 Overloaded Moves . | . . . Propulsion Burnouts . | . . . Robots Hopped . | . . . Cave-ins Triggered . | . . . Exploration Rate (%) 37 | 4 98 10 Regions Visited 2 Branch Regions 1 Pre-discovered Areas . | . . . Known Exits Taken . | . . . Unknown Exits Taken 2 | 1 1 . Scrap Searched . | . . . Spaces Dug . | . . . Terrain Destroyed . | . . . Melee . | . . . Projectile . | . . . AOE . | . . . Terrain Rammed . | . . . Walls Destroyed . | . . . Machines Disabled . | . . . Actions | -11 -10 -10 --------- Run | Yrd Mat Sub Total 997 | 64 782 151 Wait 66 | . 66 . Move 761 | 48 612 101 Hop . | . . . Pick Up 30 | 9 18 3 Fast Attach . | . . . Attach 14 | 6 4 4 Detach . | . . . Swap 5 | 1 4 . Drop 5 | . 2 3 Fire 116 | . 76 40 Melee . | . . . Ram . | . . . Kick . | . . . Crush . | . . . Escape Stasis . | . . . Rewire . | . . . Trap . | . . . Miscellaneous . | . . . Route ------- -11/Scrapyard -10/Materials (discovered 6 exits: [*Mat x3] / [*Min x2] / [*Sub]) -10/Subcaves History --------- Turn | Location | Event 5 | -11/Scrapyard | Discovered new exit (range 16) 77 | -11/Scrapyard | Entered Materials 248 | -10/Materials | Discovered new exit (range 15) 311 | -10/Materials | Build established: Mutant 467 | -10/Materials | Discovered new exit (range 12) 635 | -10/Materials | Discovered new exit (range 15) 746 | -10/Materials | Discovered new exit (range 8) 879 | -10/Materials | Discovered new exit (range 12) 1471 | -10/Materials | Discovered new exit (range 2) 1475 | -10/Materials | Entered Subcaves 1695 | -10/Subcaves | Core integrity fell below 50% 1795 | -10/Subcaves | Core integrity fell below 20% 1836 | -10/Subcaves | Destroyed by SL-6CU(R) with Subdweller Machine Gun Last Messages --------------- 01514_ Sml. Laser fries itself beyond repair. 01530_ Acquired 35 matter. 01691_ 30-8Z1(R) Sub. Optics blasted off. 01694_ 30-8Z1(R) knocked back. 01700_ 30-8Z1(R) Sub. Monowheel blasted off. 01703_ 30-8Z1(R) knocked back. 01715_ 30-8Z1(R) destroyed. 01725_ Acquired 4 matter. 01742_ Dropped Hcp. Storage Unit. 01744_ Dropped Sml. Laser. 01746_ Acquired Beam Cannon. 01750_ Acquired Ion Engine. 01751_ Dropped Med. Storage Unit. 01755_ Acquired Lgt. Armor Plating. 01774_ SL-6CU(R) knocked back. 01802_ Lgt. Treads destroyed. 01808_ Lgt. Armor Plating destroyed. 01820_ Lgt. Cannon destroyed. 01824_ Ion Engine destroyed. 01834_ Lgt. Treads destroyed. Map ----- +----------------------------------------------------+ | ?????????????????????????????????????????????????? | | ?????????????????????????????????????????????????? | | ?????????????????????????????????????????????????? | | ?????????????????????????????????????????????????? | | ?????????????????????????????????????????????????? | | ?????????????????????????????????????????????????? | | ?????????????????????????????????????????????????? | | ?????????????????????????????????????????????????? | | ?????????????????????????????????????????????????? | | ?????????????????????????????????????????????????? | | ?????????????????????????????????????????????????? | | ?????????????????????????????????????????????????? | | ???# ??????????????????????????????????????????? | | ??## ??????????????????????????????????????????? | | ?## ??????????????????????????????????????????? | | ## ??????????????????????????????????????????? | | ? ??????????????????????????????????????????? | | ?? ??????????????????????????????????????????? | | ??? ??##??????????????????????????????????????? | | ##?? ## #??????????####?##?????????????????????? | | ??? % ??????????## "##"#?????????????????????? | | ???? ?????????## """"#?????????????????????? | | #??## #?????????#% """#?????????????????????? | | #?# % ##????????## """###???????????????????? | | ## #?????????#; !"#" ##??????????????????? | | # ## ####?????### [[@ R "##?????????????????? | | # ## ###??##!!!% % "#?????????????????? | | #??#[!*![%### R#?????????????????? | | ##??#! [! ##? """???????????????? | | ######### "#?? """???????????????? | | ## ### ## ##??# ##????##???????????????? | | ?## ##?# #### #??????????????????????? | | ?## #??## ## #??????????????????????? | | ## #???##### #??????????????????????? | | # #???????## #??????????????????????? | | ##???????## ## #?????????????????????? | | #????????##### "#?????????????????????? | | #???????????# "##?????????????????????? | | #???????????# ##??????????????????????? | | # #???????????# ##???????????????????????? | | # #####??????# ##????????????????????????? | | # ## ##?????# #?????????????????????????? | | #?????# ?????????????????????????? | | ##?????# ?????????????????????????? | | #####??????## ?????????????????????????? | | ##???????????#######????????????????????????? | | #???????????????????????????????????????????? | | ##??????????????????????????????????????????? | | #??????????????????????????????????????????? | | ##??????????????????????????????????????????? | +----------------------------------------------------+ Best States ------------- Heat Dissipation 25 Energy Generation 10 Energy Capacity 250 Matter Stores 300 Matter Capacity 300 Sight Range 16 Terrain Scan Density 10 Armor Coverage 300 Evasion (%) 50 Recoil Reduction 2 Item Schematics ----------------- None Robot Schematics ------------------ None Fabricated ------------ Nothing Alien Tech Used ----------------- None Achievements -------------- None Challenges ------------ None Game ------ Seed TargetTransportExoskeleton Manual? 0 Play Time 00:09:20 Cumulative 129.2 hours Start 2023.12.23 @ 12:46:25 End 2023.12.23 @ 13:01:32 Sessions 1 Manual Loads 0 Difficulty Rogue Special Mode None Game No. 141 Rogue 105 Adventurer 36 Explorer 0 Win Type - Total 8 Types 2/0/6/0/0/0/0/0/0 Lore% 53 Gallery% 76 Achievement% 62 Wizard Run 0 Options --------- ASCII 0 Keyboard 0 Movement Mouse Keybinds 0 Fullscreen 1 Font 18/SmallcapsGlow Map View 76x50 Zoom Use 0% Tactical HUD 1 Map Filters NONE Filters NONE Steam 1 RUN: 6b70c1a9-0118-4e69-a6a2-ce2faf32d5d6